Cogmind - Beta 15 @@@ ROGUE MODE // 2025.08.06 @ 19:47:46 Player: Skysub Result: Escaped! Performance ------------- Evolutions (9) 4500 Regions Visited (11) 2200 Robots Destroyed (24) 120 Value Destroyed (207) 207 Prototype IDs (2) 40 Alien Tech Used (0) 0 Bonus (34714) 34714 TOTAL SCORE: 41781 Bonus ------- Pacifist 200 Entered DSFs 500 Win 3000 Win Speed 31014 Cogmind --------- Core Integrity 1600/1600 Matter 90/300 Energy 310/385 System Corruption 0% Temperature Hot (248) Movement Flying (15) Location To Epsilon Eridani Parts ------- > --- POWER (3) -------- Light Nuclear Core Antimatter Reactor > --- PROPULSION (9) --- Cesium-ion Thruster Cesium-ion Thruster Improved Cesium-ion Thruster Improved Cesium-ion Thruster Cooled VTOL Module Field Propulsion Drive Field Propulsion Array > --- UTILITY (11) ----- Coolant Injector Small Storage Unit Structural Scanner Improved Sensor Array Improved Signal Interpreter Improved Propulsion Shielding Advanced Hacking Suite Advanced Hacking Suite Advanced Hacking Suite Advanced System Shield > --- WEAPON (2) ------- Katana Katana > --- INVENTORY (8) ---- Layered Heavy Armor Plating Improved Proton Missile Launcher Peak State ------------ > --- POWER ------------ Light Nuclear Core Antimatter Reactor > --- PROPULSION ------- Cesium-ion Thruster Cesium-ion Thruster Improved Cesium-ion Thruster Improved Cesium-ion Thruster Cooled VTOL Module Field Propulsion Drive Field Propulsion Array > --- UTILITY ---------- Coolant Injector Small Storage Unit Structural Scanner Improved Sensor Array Improved Signal Interpreter Improved Propulsion Shielding Advanced Hacking Suite Advanced Hacking Suite Advanced Hacking Suite Advanced System Shield > --- WEAPON ----------- Katana Katana > --- INVENTORY -------- Layered Heavy Armor Plating Improved Proton Missile Launcher [Rating: 97] Favorites ----------- Power Light Ion Engine Engine Light Ion Engine Power Core Light Nuclear Core Reactor Antimatter Reactor Propulsion Cesium-ion Thruster Flight Unit Cesium-ion Thruster Utility Advanced Hacking Suite Device Structural Scanner Storage Small Storage Unit Processor Improved Signal Interpreter Hackware Advanced Hacking Suite Protection Improved Medium Armor Plating Weapon Katana Ballistic Cannon Gauss Cannon Launcher Grenade Launcher Impact Weapon Hammer Slashing Weapon Katana Build | -11 -10 -9 -8 -7 -6 -6 -5 -4 -3 -2 -1 ------- Run | Yrd Mat Mat Mat Fac Fac DSF Fac Fac Res Res Acc Slots Evolved 18 | . . 2 2 2 2 . 2 2 2 2 2 Power 2 | . . . . 1 . . . 1 . . . Propulsion 7 | . . 1 1 1 1 . . 1 1 . 1 Utility 9 | . . 1 1 . 1 . 2 . 1 2 1 Weapon . | . . . . . . . . . . . . Parts Attached 44 | . 3 5 10 10 . 5 4 1 1 3 2 Power 6 | . . . 1 3 . 1 . . 1 . . Engine 4 | . . . 1 3 . . . . . . . Core 1 | . . . . . . 1 . . . . . Reactor 1 | . . . . . . . . . 1 . . Propulsion 17 | . 2 2 6 3 . . 2 . . 1 1 Treads . | . . . . . . . . . . . . Leg . | . . . . . . . . . . . . Wheel . | . . . . . . . . . . . . Hover . | . . . . . . . . . . . . Flight 17 | . 2 2 6 3 . . 2 . . 1 1 Utility 15 | . 1 1 3 2 . 2 2 1 . 2 1 Device 4 | . . . 1 1 . . 1 . . 1 . Storage 1 | . 1 . . . . . . . . . . Processor 2 | . . 1 1 . . . . . . . . Hackware 5 | . . . 1 . . 1 1 1 . 1 . Protection 3 | . . . . 1 . 1 . . . . 1 Artifact . | . . . . . . . . . . . . Weapon 6 | . . 2 . 2 . 2 . . . . . Energy Gun . | . . . . . . . . . . . . Energy Cannon . | . . . . . . . . . . . . Ballistic Gun . | . . . . . . . . . . . . Ballistic Cannon 1 | . . . . 1 . . . . . . . Launcher 2 | . . 1 . 1 . . . . . . . Special Weapon . | . . . . . . . . . . . . Impact Weapon 1 | . . 1 . . . . . . . . . Slashing Weapon 2 | . . . . . . 2 . . . . . Piercing Weapon . | . . . . . . . . . . . . Special Melee Weapon . | . . . . . . . . . . . . Unidentified Prototypes 2 | . . . . 1 . . 1 . . . . Parts Lost 15 | . . 2 6 2 . 1 . . . 4 . Power 2 | . . . 1 1 . . . . . . . Propulsion 9 | . . 2 4 . . . . . . 3 . Utility 3 | . . . 1 . . 1 . . . 1 . Weapon 1 | . . . . 1 . . . . . . . Highest Loss Streak 5 | . . 1 5 1 . 1 . . . 3 . To Critical Strikes . | . . . . . . . . . . . . Average Backups 4 | 1 3 2 2 6 7 7 6 6 6 3 2 Power . | . 1 1 . . . . . . . . . Propulsion . | . . . . 1 1 1 1 1 2 1 . Utility 2 | . . . 1 3 4 4 4 4 3 1 1 Weapon 1 | . . 1 1 1 2 1 1 1 1 1 1 Tool/Special . | . . . . . . . . . . . . Unused Backups 6 | . . . . 2 . 1 2 . . . 1 Power . | . . . . . . . . . . . . Propulsion . | . . . . . . . . . . . . Utility 6 | . . . . 2 . 1 2 . . . 1 Weapon . | . . . . . . . . . . . . Tool/Special . | . . . . . . . . . . . . Average Slot Usage (%) 74 | . 14 39 53 80 86 91 99 92 87 92 83 Engine 3 | . . . 2 5 13 13 5 5 2 . . Core 1 | . . . . . . . 5 5 2 3 4 Flight 29 | . 10 20 18 38 40 40 35 34 33 33 28 Device 5 | . . . 4 . . . 10 8 9 12 12 Storage 4 | . 4 8 . 5 6 6 5 5 4 4 4 Processor 7 | . . 4 16 13 6 6 5 5 4 4 4 Hackware 7 | . . . 3 7 6 6 10 11 14 15 16 Protection 2 | . . . . 1 6 11 5 5 4 4 3 Impact Weapon 1 | . . 4 6 1 . . . . . . . Slashing Weapon 4 | . . . . . . 3 11 10 9 8 8 Peak Build Rating 97 | . 3 6 22 39 41 51 64 67 77 92 97 Average Rating 42 | . 1 3 12 33 41 46 59 66 73 90 96 On Entrance 36 | . . 3 5 21 38 41 49 62 67 74 82 Naked Turns 31 | . 31 . . . . . . . . . . Heaviest Build 40 | . 5 8 6 25 25 32 26 26 34 40 35 Greatest Support 51 | 3 8 8 20 27 32 32 32 37 37 44 51 Greatest Overweight (x) . | . . . . . . . . . . . . Average Overweight (x) . | . . . . . . . . . . . . Largest Inventory Capacity 8 | 5 8 8 5 8 8 8 8 8 8 8 8 Average Capacity 7 | 5 5 7 5 7 8 8 8 8 8 8 8 Most Carried 8 | 2 5 4 4 8 7 8 8 8 8 8 3 Average Carried 4 | 1 3 2 2 6 7 7 6 7 7 5 3 Final Capacity 8 | 5 8 5 5 8 8 8 8 8 8 8 8 Final Carried 8 | 2 3 3 3 8 7 8 8 8 8 5 3 Class Distribution -------------------- 46% | Sprinter 23% | Hacker-Sprinter 11% | Hacker-Scout 9% | Mutant 9% | Hacker-Assassin Dominant Class ---------------- Mutant | -10/Materials Mutant | -9/Materials Mutant | -8/Materials Sprinter | -7/Factory Sprinter | -6/Factory Sprinter | -6/DSF Hacker-Sprinter | -5/Factory Hacker-Sprinter | -4/Factory Hacker-Sprinter | -3/Research Hacker-Assassin | -2/Research Hacker-Scout | -1/Access Resources | -11 -10 -9 -8 -7 -6 -6 -5 -4 -3 -2 -1 ----------- Run | Yrd Mat Mat Mat Fac Fac DSF Fac Fac Res Res Acc Matter Collected 739 | 113 67 34 25 213 . 117 170 . . . . Remotely . | . . . . . . . . . . . . Salvage Created 415 | . . 45 43 213 . 114 . . . . . Parts 26 | . . 4 6 14 . 2 . . . . . Haulers Intercepted 1 | . . . . . . 1 . . . . . Recyclers Shooed . | . . . . . . . . . . . . Parts Field Recycled . | . . . . . . . . . . . . Retrieved Matter . | . . . . . . . . . . . . Parts Self-Destructed . | . . . . . . . . . . . . Prevented . | . . . . . . . . . . . . Kills | -11 -10 -9 -8 -7 -6 -6 -5 -4 -3 -2 -1 ------- Run | Yrd Mat Mat Mat Fac Fac DSF Fac Fac Res Res Acc Combat Hostiles Destroyed 11 | . . 7 4 . . . . . . . . AOE 11 | . . 7 4 . . . . . . . . Classes Destroyed 6 | . . 2 . 3 . 1 . . . . . Worker 3 | . . . . 3 . . . . . . . Builder 6 | . . 1 1 4 . . . . . . . Tunneler 1 | . . . . 1 . . . . . . . Hauler 1 | . . . . . . 1 . . . . . Recycler 2 | . . . . 2 . . . . . . . Swarmer 11 | . . 7 4 . . . . . . . . Best Kill Streak 4 | . . 4 4 4 . 1 . . . . . Combat Bots Only 4 | . . 4 4 . . . . . . . . Max Kills in Single Turn 3 | . . 3 3 1 . 1 . . . . . Gunslinging . | . . . . . . . . . . . . Exploded 3 | . . 3 3 . . . . . . . . Melee . | . . . . . . . . . . . . Uniques/NPCs Destroyed . | . . . . . . . . . . . . Combat | -11 -10 -9 -8 -7 -6 -6 -5 -4 -3 -2 -1 -------- Run | Yrd Mat Mat Mat Fac Fac DSF Fac Fac Res Res Acc Hostile Shots Fired 199 | . . 30 74 52 . 6 19 . . 14 4 Missed 100 | . . 14 36 31 . 2 10 . . 4 3 Hits 99 | . . 16 38 21 . 4 9 . . 10 1 Projectile 99 | . . 16 38 21 . 4 9 . . 10 1 Critical Strikes 6 | . . . 2 1 . 2 . . . 1 . Damage Taken 1844 | . 9 208 611 318 . 230 121 . . 319 28 Core 655 | . 9 115 323 79 . . 38 . . 91 . Absorbed by Shields . | . . . . . . . . . . . . Core Remaining (%) 89 | 100 96 71 41 88 . 100 96 100 100 93 100 Volleys Fired 22 | . . 4 3 15 . . . . . . . Largest 1 | . . 1 1 1 . . . . . . . Hottest 43 | . . 30 30 43 . . . . . . . Shots Fired 22 | . . 4 3 15 . . . . . . . Gun . | . . . . . . . . . . . . Cannon 10 | . . . . 10 . . . . . . . Launcher 12 | . . 4 3 5 . . . . . . . Special . | . . . . . . . . . . . . Kinetic 10 | . . . . 10 . . . . . . . Thermal . | . . . . . . . . . . . . Explosive 11 | . . 4 3 4 . . . . . . . Electromagnetic 1 | . . . . 1 . . . . . . . Robot Hit Streak 5 | . . 1 4 5 . . . . . . . Robot Miss Streak 2 | . . 2 . 2 . . . . . . . Penetration Max . | . . . . . . . . . . . . Secondary Targets . | . . . . . . . . . . . . Shots Hit Robots 18 | . . 2 4 11 . 1 . . . . . Core Hits 20 | . . 7 4 8 . 1 . . . . . Critical Kills . | . . . . . . . . . . . . Critical Parts Destroyed 2 | . . 1 . 1 . . . . . . . Critical Strikes 2 | . . 1 . 1 . . . . . . . Smash 2 | . . 1 . 1 . . . . . . . Melee Attacks 31 | . . 1 2 4 . 1 8 . 2 8 5 Impact 7 | . . 1 2 4 . . . . . . . Slashing 24 | . . . . . . 1 8 . 2 8 5 Piercing . | . . . . . . . . . . . . Sneak Attacks 7 | . . 1 1 4 . 1 . . . . . Combat Hostiles . | . . . . . . . . . . . . Follow-up Attacks . | . . . . . . . . . . . . Damage Inflicted 1512 | . . 575 272 586 . 79 . . . . . Guns . | . . . . . . . . . . . . Cannons 173 | . . . . 173 . . . . . . . Explosions 873 | . . 525 208 140 . . . . . . . Melee 466 | . . 50 64 273 . 79 . . . . . Ramming . | . . . . . . . . . . . . Kinetic 173 | . . . . 173 . . . . . . . Thermal . | . . . . . . . . . . . . Explosive 860 | . . 525 208 127 . . . . . . . Electromagnetic 13 | . . . . 13 . . . . . . . Impact 387 | . . 50 64 273 . . . . . . . Slashing 79 | . . . . . . 79 . . . . . Piercing . | . . . . . . . . . . . . Highest Corruption 1 | . . . . 1 . . 1 . . . . Average Corruption 1 | . . . . 1 . . 1 . . . . Corruption Purged . | . . . . . . . . . . . . Corruption Blocked . | . . . . . . . . . . . . Effects 2 | . . . . 1 . . 1 . . . . Matter Fused 1 | . . . . 1 . . . . . . . Heat Flow Errors 1 | . . . . . . . 1 . . . . Overload Shots . | . . . . . . . . . . . . Overflow Damage 299 | . . 83 44 172 . . . . . . . Projectiles 28 | . . . . 28 . . . . . . . Explosions 33 | . . 33 . . . . . . . . . Melee 238 | . . 50 44 144 . . . . . . . Knockbacks . | . . . . . . . . . . . . Impact . | . . . . . . . . . . . . Kinetic . | . . . . . . . . . . . . Secondary . | . . . . . . . . . . . . Self-Inflicted Damage 148 | . . 40 41 67 . . . . . . . Shots 6 | . . 2 2 2 . . . . . . . Rammed 1 | . . . . . . . . . . 1 . Targets Rammed 1 | . . . . . . . . . . 1 . Kicked . | . . . . . . . . . . . . Crushed . | . . . . . . . . . . . . Highest Temperature 259 | . . . 6 259 . 1 198 140 29 198 199 Average Temperature 106 | . . . 4 63 . 1 126 81 16 119 125 Received Heat Transfer 498 | . . 27 306 90 . . 39 . . 27 9 Siege Activations . | . . . . . . . . . . . . Martial Activations . | . . . . . . . . . . . . Shielding Activations . | . . . . . . . . . . . . Robots Disrupted . | . . . . . . . . . . . . Combat Hostiles . | . . . . . . . . . . . . Robots Corrupted 2 | . . 1 . 1 . . . . . . . Combat Hostiles . | . . . . . . . . . . . . Parts Fried 15 | . . 2 5 8 . . . . . . . Impact Corruptions 8 | . . 2 2 4 . . . . . . . Robots Melted . | . . . . . . . . . . . . Combat Hostiles . | . . . . . . . . . . . . Parts Melted . | . . . . . . . . . . . . Heat Transferred . | . . . . . . . . . . . . Parts Sabotaged . | . . . . . . . . . . . . Parts Stolen . | . . . . . . . . . . . . Parts Stripped . | . . . . . . . . . . . . Power Chain Reactions 1 | . . . . 1 . . . . . . . Alert | -11 -10 -9 -8 -7 -6 -6 -5 -4 -3 -2 -1 ------- Run | Yrd Mat Mat Mat Fac Fac DSF Fac Fac Res Res Acc Maximum Alert Level 1 | . . . . 1 . . 1 1 . . . Low Security (%) 77 | 100 100 100 100 54 100 100 50 73 100 100 100 Level 1 22 | . . . . 45 . . 50 26 . . . Level 2 . | . . . . . . . . . . . . Level 3 . | . . . . . . . . . . . . Level 4 . | . . . . . . . . . . . . Level 5 . | . . . . . . . . . . . . High Security . | . . . . . . . . . . . . Max Security . | . . . . . . . . . . . . Peak Influence 381 | . . 191 188 381 181 126 374 217 115 157 93 Initial 181 | . . . 76 72 181 126 63 171 113 64 69 Average 139 | . . 85 153 193 181 122 204 187 113 85 59 Influence Increases 1460 | . . 240 194 419 . 5 367 46 2 133 54 Destroy 0b10 Robot/C 220 | . . 140 80 . . . . . . . . Destroy 0b10 Robot/NC 65 | . . 5 5 50 . 5 . . . . . Destroy Leader 30 | . . 20 10 . . . . . . . . Successful Hack 185 | . . 24 11 55 . . 12 46 . 22 15 Disable Machine 45 | . . . 15 15 . . 15 . . . . Destroy Structure 90 | . . 21 13 14 . . 10 . 2 21 9 Partial Spotted 135 | . . 15 . 15 . . 90 . . 15 . Lose Combat Pursuer 690 | . . 15 60 270 . . 240 . . 75 30 Influence Decreases 1367 | . . 59 215 208 190 65 138 179 104 131 78 Entered New Map 878 | . . . 105 88 190 55 58 179 104 51 48 Time Decay 320 | . . 30 50 100 . . 80 . . 30 30 Lost Part 149 | . . 19 60 20 . 10 . . . 40 . Lost Ally 20 | . . 10 . . . . . . . 10 . Squads Dispatched 19 | . . 2 . 6 . . 2 1 . 3 5 Investigation 10 | . . 2 . 3 . . 2 1 . 1 1 Extermination 1 | . . . . . . . . . . . 1 Reinforcement 7 | . . . . 2 . . . . . 2 3 Assault . | . . . . . . . . . . . . Garrison 1 | . . . . 1 . . . . . . . Intercept . | . . . . . . . . . . . . Searches Triggered . | . . . . . . . . . . . . Construction Impeded 1 | . . . . 1 . . . . . . . Haulers Reinforced . | . . . . . . . . . . . . Active Scanning Responses . | . . . . . . . . . . . . Cargo Convoy Interrupts . | . . . . . . . . . . . . Stealth | -11 -10 -9 -8 -7 -6 -6 -5 -4 -3 -2 -1 --------- Run | Yrd Mat Mat Mat Fac Fac DSF Fac Fac Res Res Acc Distress Signals 4 | . . 2 . . . . 1 . . . 1 Communications Jammed . | . . . . . . . . . . . . Distress Signals . | . . . . . . . . . . . . Times Spotted 112 | . 6 14 23 29 . 1 16 . . 15 8 Peak Tracking Total 14 | . 4 9 12 11 . 1 14 . . 9 7 Tactical Retreats 14 | . . 1 2 6 . . 3 . . 1 1 Traps | -11 -10 -9 -8 -7 -6 -6 -5 -4 -3 -2 -1 ------- Run | Yrd Mat Mat Mat Fac Fac DSF Fac Fac Res Res Acc Traps Triggered 3 | . . . . . . . 2 . . . 1 Indirectly . | . . . . . . . . . . . . Trap Hack Attempts . | . . . . . . . . . . . . Triggered . | . . . . . . . . . . . . Disarmed . | . . . . . . . . . . . . Reprogrammed . | . . . . . . . . . . . . Reused . | . . . . . . . . . . . . Traps Extracted . | . . . . . . . . . . . . Installed . | . . . . . . . . . . . . Triggered . | . . . . . . . . . . . . Machines | -11 -10 -9 -8 -7 -6 -6 -5 -4 -3 -2 -1 ---------- Run | Yrd Mat Mat Mat Fac Fac DSF Fac Fac Res Res Acc Machines Disabled 3 | . . . 1 1 . . 1 . . . . Max in Single Turn 1 | . . . 1 1 . . 1 . . . . Machines Repaired . | . . . . . . . . . . . . Machines Dismantled . | . . . . . . . . . . . . Machines Sabotaged . | . . . . . . . . . . . . Overloaded Fab Kills . | . . . . . . . . . . . . Hacking | -11 -10 -9 -8 -7 -6 -6 -5 -4 -3 -2 -1 --------- Run | Yrd Mat Mat Mat Fac Fac DSF Fac Fac Res Res Acc Machines Accessed 23 | . 3 3 2 4 1 . 4 2 . 2 2 Terminals 20 | . 3 3 2 2 1 . 3 2 . 2 2 Fabricators 2 | . . . . 1 . . 1 . . . . Repair Stations . | . . . . . . . . . . . . Recycling Units 1 | . . . . 1 . . . . . . . Scanalyzers . | . . . . . . . . . . . . Garrison Access . | . . . . . . . . . . . . Total Hacks 77 | . 13 15 6 11 3 . 12 6 . 7 4 Successful 35 | . 2 7 2 7 1 . 7 4 . 3 2 Failed 42 | . 11 8 4 4 2 . 5 2 . 4 2 Catastrophic 13 | . 4 2 1 3 . . 2 . . . 1 Database Lockouts . | . . . . . . . . . . . . Manual 63 | . 13 15 6 8 . . 7 5 . 7 2 Terminals 71 | . 13 15 6 6 3 . 11 6 . 7 4 Fabricators 3 | . . . . 2 . . 1 . . . . Repair Stations . | . . . . . . . . . . . . Recycling Units 3 | . . . . 3 . . . . . . . Scanalyzers . | . . . . . . . . . . . . Garrison Access . | . . . . . . . . . . . . Terminal Hacks 17 | . . 3 1 2 1 . 5 2 . 1 2 Open Door 1 | . . . . . . . . . . . 1 Open DSF 1 | . . . . . 1 . . . . . . Level Access Points 7 | . . 1 1 1 . . 1 1 . 1 1 Terminal Index 2 | . . . . . . . 1 1 . . . Locate Traps 1 | . . . . . . . 1 . . . . Registered Components 3 | . . 1 . 1 . . 1 . . . . Registered Prototypes 2 | . . 1 . . . . 1 . . . . Fabricator Hacks 1 | . . . . 1 . . . . . . . Build 1 | . . . . 1 . . . . . . . Repair Station Hacks . | . . . . . . . . . . . . Recycling Unit Hacks 2 | . . . . 2 . . . . . . . Report Inventory 1 | . . . . 1 . . . . . . . Retrieve Components 1 | . . . . 1 . . . . . . . Scanalyzer . | . . . . . . . . . . . . Garrison Access Hacks . | . . . . . . . . . . . . Unauthorized Hacks 15 | . 2 4 1 2 . . 2 2 . 2 . Terminals 13 | . 2 4 1 1 . . 1 2 . 2 . Assimilate 2 | . . 1 . . . . . . . 1 . Botnet 11 | . 2 3 1 1 . . 1 2 . 1 . Fabricators 2 | . . . . 1 . . 1 . . . . Fabnet 2 | . . . . 1 . . 1 . . . . Repair Stations . | . . . . . . . . . . . . Recycling Units . | . . . . . . . . . . . . Scanalyzers . | . . . . . . . . . . . . Garrison Access . | . . . . . . . . . . . . Data Cores Recovered . | . . . . . . . . . . . . Used . | . . . . . . . . . . . . Hacking Detections 21 | . 3 3 2 4 1 . 3 2 . 2 1 Full Trace Events 14 | . 3 2 1 3 . . 2 1 . 1 1 Feedback Events 1 | . . . . . . . 1 . . . . Corruption 1 | . . . . . . . 1 . . . . Feedback Blocked 1 | . . . . . . . . 1 . . . Robot Schematics Acquired . | . . . . . . . . . . . . Robots Built . | . . . . . . . . . . . . Authchips . | . . . . . . . . . . . . Time 67 | . . . . 67 . . . . . . . Total Robot Build Rating . | . . . . . . . . . . . . Part Schematics Acquired . | . . . . . . . . . . . . Parts Built . | . . . . . . . . . . . . Authchips . | . . . . . . . . . . . . Time . | . . . . . . . . . . . . Total Part Build Rating . | . . . . . . . . . . . . Parts Repaired . | . . . . . . . . . . . . Time . | . . . . . . . . . . . . Parts Recycled . | . . . . . . . . . . . . Recycled Matter . | . . . . . . . . . . . . Retrieved Matter . | . . . . . . . . . . . . Retrieved Components 2 | . . . . 2 . . . . . . . Parts Scanalyzed . | . . . . . . . . . . . . Part Schematics Acquired . | . . . . . . . . . . . . Parts Damaged . | . . . . . . . . . . . . Bothacking | -11 -10 -9 -8 -7 -6 -6 -5 -4 -3 -2 -1 ------------ Run | Yrd Mat Mat Mat Fac Fac DSF Fac Fac Res Res Acc Used RIF Installer . | . . . . . . . . . . . . Robots Hacked . | . . . . . . . . . . . . Non-combat . | . . . . . . . . . . . . Combat . | . . . . . . . . . . . . Robot Hacks Applied . | . . . . . . . . . . . . Relay Couplers Released . | . . . . . . . . . . . . Fabnet Peak Effective % 3 | . . . . . . . . 3 1 . . Robots Rewired . | . . . . . . . . . . . . Allies Hacked . | . . . . . . . . . . . . Hacks Repelled . | . . . . . . . . . . . . Allies | -11 -10 -9 -8 -7 -6 -6 -5 -4 -3 -2 -1 -------- Run | Yrd Mat Mat Mat Fac Fac DSF Fac Fac Res Res Acc Total Allies 2 | . . 1 . . . . . . . 1 . Largest Group 1 | . . 1 . . . . . . . 1 . Highest-Rated Group 26 | . . 10 . . . . . . . 26 . Highest-Rated Ally 26 | . . 10 . . . . . . . 26 . Total Orders . | . . . . . . . . . . . . Ally Attacks . | . . . . . . . . . . . . Total Damage . | . . . . . . . . . . . . Kills . | . . . . . . . . . . . . Allies Corrupted . | . . . . . . . . . . . . Allies Melted . | . . . . . . . . . . . . Intel | -11 -10 -9 -8 -7 -6 -6 -5 -4 -3 -2 -1 ------- Run | Yrd Mat Mat Mat Fac Fac DSF Fac Fac Res Res Acc Active Infowar (turns) 638 | . . 30 107 169 . . 166 15 11 62 78 Optics 304 | . . 30 107 167 . . . . . . . Sensors 174 | . . . 37 . . . . . . 59 78 Structural 334 | . . . . 2 . . 166 15 11 62 78 Robot Analysis Total . | . . . . . . . . . . . . Derelict Logs Recovered . | . . . . . . . . . . . . Drone Launches . | . . . . . . . . . . . . Drone Recoveries . | . . . . . . . . . . . . Exploration | -11 -10 -9 -8 -7 -6 -6 -5 -4 -3 -2 -1 ------------- Run | Yrd Mat Mat Mat Fac Fac DSF Fac Fac Res Res Acc Turns Passed 832 | 17 55 71 107 211 2 33 170 15 11 62 78 Spaces Moved 2410 | 30 106 135 188 566 4 93 600 65 21 242 360 Core 110 | 30 48 . 32 . . . . . . . . Treads . | . . . . . . . . . . . . Legs . | . . . . . . . . . . . . Wheels . | . . . . . . . . . . . . Hover . | . . . . . . . . . . . . Flight 2300 | . 58 135 156 566 4 93 600 65 21 242 360 Fastest Speed 15 | 50 37 37 26 23 20 20 20 17 17 15 15 Average Speed 23 | 50 43 37 35 24 20 20 20 17 17 15 16 Slowest Speed 50 | 50 50 40 50 29 20 20 23 20 17 17 22 Overloaded Moves 215 | . . . . . . . . . . 2 213 Propulsion Burnouts . | . . . . . . . . . . . . Robots Hopped 31 | . 1 1 6 9 . . 6 . . 3 5 Potential Cave-ins . | . . . . . . . . . . . . Cave-ins Triggered . | . . . . . . . . . . . . Exploration Rate (%) 21 | 4 33 29 24 25 1 89 21 3 1 12 11 Regions Visited 11 Branch Regions . Pre-discovered Areas . | . . . . . . . . . . . . Known Exits Taken 8 | . . 1 1 1 1 . 1 1 1 1 . Unknown Exits Taken 2 | 1 1 . . . . . . . . . . Scrap Searched . | . . . . . . . . . . . . Spaces Dug 16 | . . . . . . . 5 . 1 7 3 Terrain Destroyed 64 | . . 21 15 12 . . 5 . 1 7 3 Melee 16 | . . . . . . . 5 . 1 7 3 Projectile 2 | . . . . 2 . . . . . . . AOE 46 | . . 21 15 10 . . . . . . . Terrain Rammed . | . . . . . . . . . . . . Walls Destroyed . | . . . . . . . . . . . . Machines Disabled . | . . . . . . . . . . . . Actions | -11 -10 -9 -8 -7 -6 -6 -5 -4 -3 -2 -1 --------- Run | Yrd Mat Mat Mat Fac Fac DSF Fac Fac Res Res Acc Total 2554 | 31 113 147 211 601 4 107 631 67 26 253 363 Wait 12 | . 3 . 8 . . . . . . 1 . Move 2339 | 29 103 132 176 547 3 92 587 64 20 237 349 Hop 29 | . 1 1 5 9 . . 6 . . 2 5 Pick Up 24 | 2 3 . 1 9 . 4 3 1 . 1 . Fast Attach 28 | . 1 3 9 5 . 2 4 . 1 . 3 Attach 24 | . 2 3 3 3 1 1 3 1 1 5 1 Detach 11 | . . 3 2 2 . 1 1 . 2 . . Swap 12 | . . . 2 5 . 2 2 1 . . . Drop 10 | . . . . 2 . 4 3 . 1 . . Fire 22 | . . 4 3 15 . . . . . . . Melee 28 | . . 1 2 4 . 1 7 . 1 7 5 Ram . | . . . . . . . . . . . . Kick . | . . . . . . . . . . . . Crush . | . . . . . . . . . . . . Escape Stasis 15 | . . . . . . . 15 . . . . Rewire . | . . . . . . . . . . . . Trap . | . . . . . . . . . . . . Miscellaneous . | . . . . . . . . . . . . Route ------- -11/Scrapyard -10/Materials -9/Materials (discovered 3 exits: *Mat x3) -8/Materials (discovered 3 exits: *Fac x3) -7/Factory (discovered 4 exits: *Fac x4) -6/Factory -6/DSF -5/Factory (discovered 4 exits: *Fac x4) -4/Factory (discovered 4 exits: *Res x4) -3/Research -2/Research (discovered 3 exits: *Acc x3) -1/Access To Epsilon Eridani History --------- Turn | Location | Event 10 | -11/Scrapyard | Discovered new exit (range 13) 18 | -11/Scrapyard | Entered Materials 19 | -10/Materials | Met a group of wandering Federalists 68 | -10/Materials | Discovered new exit (range 16) 73 | -10/Materials | Entered another Materials area 73 | -9/Materials | Evolved 2 slots: Propulsion x1, Utility x1 105 | -9/Materials | Identified exit to Materials 144 | -9/Materials | Entered another Materials area 144 | -8/Materials | Evolved 2 slots: Propulsion x1, Utility x1 223 | -8/Materials | Identified exit to Factory 236 | -8/Materials | Core integrity fell below 50% 241 | -8/Materials | Lost 5 parts (4n1u) 251 | -8/Materials | Entered Factory 251 | -7/Factory | Evolved 2 slots: Power x1, Propulsion x1 355 | -7/Factory | Garrison activated, responded to threat 400 | -7/Factory | Build established: Sprinter 447 | -7/Factory | Identified exit to Factory 462 | -7/Factory | Entered another Factory area 462 | -6/Factory | Evolved 2 slots: Propulsion x1, Utility x1 464 | -6/Factory | Identified exit to DSF 464 | -6/Factory | Entered DSF 487 | -6/DSF | Additional patrols routed to DSF 491 | -6/DSF | Discovered new exit (range 14) 494 | -6/DSF | Identified exit to Factory 497 | -6/DSF | Entered Factory 497 | -5/Factory | Evolved 2 slots: Utility x2 534 | -5/Factory | Spotted B-75 Beast 631 | -5/Factory | Identified exit to Factory 667 | -5/Factory | Entered another Factory area 667 | -4/Factory | Evolved 2 slots: Power x1, Propulsion x1 678 | -4/Factory | Identified exit to Research 682 | -4/Factory | Entered Research 682 | -3/Research | Evolved 2 slots: Propulsion x1, Utility x1 689 | -3/Research | Discovered new exit (range 5) 692 | -3/Research | Identified exit to Research 693 | -3/Research | Entered another Research area 693 | -2/Research | Evolved 2 slots: Utility x2 704 | -2/Research | Identified exit to Access 755 | -2/Research | Entered Access 755 | -1/Access | Evolved 2 slots: Propulsion x1, Utility x1 785 | -1/Access | Lost 3 parts (2n1u) 793 | -1/Access | Identified exit to Surface 833 | *** | Escaped! Last Messages --------------- Investigation squad. 00796_ Triggered Blade Trap. 00796_ Massive razor-sharp blades shoot up from within the floor. 00796_ Cld. VTOL Module severed. 00796_ Cesium-ion Thruster severed. 00796_ Acquired Cld. VTOL Module. 00798_ Acquired Cesium-ion Thruster. 00806_ ALERT: Potential suspicious activity detected, Programmers report to Access Zone 9Q. 00809_ O-32 Director: "IFF HANDSHAKE FAILED. SECURING TERMINAL." 00816_ ALERT: Hostiles spotted, dispatching reinforcements to Terminal A021. 00824_ O-32 Director: "IFF HANDSHAKE FAILED. SECURING TERMINAL." 00829_ ALERT: Hostiles spotted, dispatching reinforcements to Terminal A017. 00832_ Connecting with Terminal... >>Open(Door) Sealed Barrier opened. 00833_ The Access Shell folds into the floor. [Achievement: True Flier] Map ----- +----------------------------------------------------+ | ?????????????????????????????????????????????????? | | ?????????????????????????????????????????????????? | | ?????????????????????????????????????????????????? | | ?????????????????????????????????????????????????? | | ?????????????????????????????????????????????????? | | ?????????????????????????????????????????????????? | | ?????????????????????????????????????????????????? | | ?????????????????????????????????????????????????? | | ?????????????????????????????????????????????????? | | ?????????????????????????????????????????????????? | | ?????????????????????????????????????????????????? | | ?????????????????????????????????????????????????? | | ????????? ?????????????????????????????????????? | | ?????????## ?????????????????????????????????????? | | ?????????## ????????????????????????????????????? | | ?????????## ????????????????????????????????????? | | ?????????## ????????????????????????????????????? | | ?????????## ?????#####??????????????????????????? | | ?????????##w ###################?????????????????? | | ?????????## ####### ###########?????????????????? | | ?????????## """T""" ""?????????????????? | | ?????????## """ """ "??????????????????? | | ?????????## "??????????????????? | | ?????????## "??????????????????? | | ?????????## "" "??????????????????? | | ?????????## @" "??????????????????? | | ?????????## u "??????????????????? | | ?????????## "??????????????????? | | ?????????## "??????????????????? | | ?????????## ""?????????????????? | | ?????????## ####### ###########?????????????????? | | ?????????## ###################?????????????????? | | ?????????## ##???#####??????????????????????????? | | ?????????## ##??????????????????????????????????? | | ?????????## ##??????????????????????????????????? | | ?????????## ##??????????????????????????????????? | | ?????????## ##???????###????????????????????????? | | ?????????## # ??????? ##????????????????????????? | | ?????????## # ????? ##????????????????????????? | | ?????????## # ??? " ??????????????????????????? | | ?????????## # ? """? ##????????????????????????? | | ?????????## # """ ##????????????????????????? | | ?????????## + " ##????????????????????????? | | ?????????## # ##????????????????????????? | | ????????### # ##????????????????????????? | | ????????### #######################?????????????? | | ????????## ######################?????????????? | | ????????## ?????????? | | ????????## " ######???????????????? | | ????????## ############ ######???????????????? | +----------------------------------------------------+ Best States ------------- Heat Dissipation 52 Coolant Potential 65 Energy Generation 30 Energy Capacity 385 Matter Stores 251 Matter Capacity 300 Sight Range 18 Robot Scan Range 15 Terrain Scan Density 10 Armor Coverage 450 Propulsion Shielding 66 Evasion (%) 66 Offensive Hacking 42 Defensive Hacking 14 Item Schematics ----------------- None Robot Schematics ------------------ None Fabricated ------------ Nothing Repaired ---------- Nothing Alien Tech Used ----------------- None Achievements -------------- True Flier Challenges ------------ None Game ------ Seed ChromionRapidInjector Manual? 0 Play Time 00:30:09 Cumulative 235.5 hours Start 2025.08.06 @ 18:31:52 End 2025.08.06 @ 19:47:46 Sessions 1 Manual Loads 0 Difficulty Rogue Special Mode None Game No. 248 Rogue 248 Adventurer 0 Explorer 0 Win Type 0 Total 10 Types 5/0/3/1/0/0/0/0/0/1 Lore% 74 Gallery% 70 Achievement% 64 Wizard Run 0 Options --------- Layout 1 ASCII 0 Keyboard 1 Movement Numpad Keybinds 0 Fullscreen 1 Font 32/SmallcapsGlow Map View 77x35 Zoom Use 0% Tactical HUD 1 Map Filters NONE Filters NONE Steam 1 RUN: 44f8d044-d074-4ae4-b43c-3383c1de2897